[Event "Early-Titled-Tuesday-Blitz-May-14-2024"]
[Site "Chess.com"]
[Date "2024.05.14"]
[Round "9"]
[White "Pomegranate988"]
[Black "Casper"]
[Result "1-0"]
[WhiteElo "2651"]
[BlackElo "2514"]
[TimeControl "180+1"]
[EndTime "9:43:36 PDT"]
[Termination "Pomegranate988 won by resignation"]

1. Nf3 {[%clk 0:03:00.9]} 1... d6 {[%clk 0:02:59.8]} 2. g3 {[%clk 0:03:00.3]}
2... g6 {[%clk 0:02:59.2]} 3. Bg2 {[%clk 0:03:00.3]} 3... Bg7 {[%clk 0:03:00.1]}
4. d4 {[%clk 0:03:00.4]} 4... Bd7 {[%clk 0:03:00.8]} 5. O-O {[%clk 0:02:56.7]}
5... Qc8 {[%clk 0:03:00.7]} 6. Re1 {[%clk 0:02:57]} 6... Bh3 {[%clk 0:03:01.2]}
7. Bh1 {[%clk 0:02:56.4]} 7... h5 {[%clk 0:03:01.8]} 8. Bg5 {[%clk 0:02:53.9]}
8... h4 {[%clk 0:02:58]} 9. Bxh4 {[%clk 0:02:48.2]} 9... f6 {[%clk 0:02:57.5]}
10. Qd3 {[%clk 0:02:47.3]} 10... g5 {[%clk 0:02:51.4]} 11. Bxg5 {[%clk
0:02:32.8]} 11... fxg5 {[%clk 0:02:48.7]} 12. Qg6+ {[%clk 0:02:22.1]} 12... Kf8
{[%clk 0:02:48.5]} 13. e4 {[%clk 0:02:16.1]} 13... Rh6 {[%clk 0:02:31.5]} 14.
Qxg5 {[%clk 0:02:12.5]} 14... Nc6 {[%clk 0:02:29.4]} 15. c3 {[%clk 0:02:07.9]}
15... Nd8 {[%clk 0:02:02.4]} 16. Nbd2 {[%clk 0:01:35.3]} 16... Nf6 {[%clk
0:02:01.3]} 17. e5 {[%clk 0:01:31.4]} 17... Nf7 {[%clk 0:02:01]} 18. Qf4 {[%clk
0:01:28.6]} 18... Nd5 {[%clk 0:01:53]} 19. Qe4 {[%clk 0:01:28.3]} 19... Bf5
{[%clk 0:01:52.1]} 20. Qxd5 {[%clk 0:01:27.3]} 20... c6 {[%clk 0:01:49.3]} 21.
Qb3 {[%clk 0:01:23.9]} 21... d5 {[%clk 0:01:49.6]} 22. h4 {[%clk 0:01:19.8]} 1-0

[Event "Early-Titled-Tuesday-Blitz-May-14-2024"]
[Site "Chess.com"]
[Date "2024.05.14"]
[Round "9"]
[White "stamatolog13"]
[Black "chessburger_tv"]
[Result "0-1"]
[WhiteElo "2561"]
[BlackElo "2421"]
[TimeControl "180+1"]
[EndTime "9:44:26 PDT"]
[Termination "chessburger_tv won by resignation"]

1. e4 {[%clk 0:02:59.7]} 1... c5 {[%clk 0:02:58]} 2. d4 {[%clk 0:02:59.4]} 2...
Nc6 {[%clk 0:02:58.5]} 3. d5 {[%clk 0:02:58.9]} 3... Nb8 {[%clk 0:02:54.8]} 4.
Nf3 {[%clk 0:02:58]} 4... d6 {[%clk 0:02:54.9]} 5. Nc3 {[%clk 0:02:58.3]} 5...
Bg4 {[%clk 0:02:55.3]} 6. h3 {[%clk 0:02:57.6]} 6... Bxf3 {[%clk 0:02:55.3]} 7.
Qxf3 {[%clk 0:02:57.5]} 7... g6 {[%clk 0:02:55.9]} 8. Bb5+ {[%clk 0:02:54.2]}
8... Nd7 {[%clk 0:02:55.6]} 9. a4 {[%clk 0:02:54.4]} 9... Bg7 {[%clk 0:02:54.6]}
10. O-O {[%clk 0:02:54.3]} 10... Nf6 {[%clk 0:02:55.1]} 11. Qe2 {[%clk
0:02:53.4]} 11... O-O {[%clk 0:02:51.7]} 12. f4 {[%clk 0:02:53.7]} 12... a6
{[%clk 0:02:50.5]} 13. Bc4 {[%clk 0:02:53.1]} 13... Qc7 {[%clk 0:02:36.6]} 14.
Bd2 {[%clk 0:02:46.8]} 14... Nb6 {[%clk 0:02:34]} 15. Ba2 {[%clk 0:02:39.8]}
15... c4 {[%clk 0:02:18.1]} 16. a5 {[%clk 0:02:37.8]} 16... Qc5+ {[%clk
0:02:14.3]} 17. Be3 {[%clk 0:02:32.6]} 17... Qxa5 {[%clk 0:02:07.7]} 18. Bxc4
{[%clk 0:02:28.9]} 18... Qb4 {[%clk 0:02:02.4]} 19. Bb3 {[%clk 0:02:28.5]} 19...
Nxe4 {[%clk 0:01:48.3]} 20. Nxe4 {[%clk 0:02:14.5]} 20... Qxe4 {[%clk
0:01:47.3]} 21. Qd2 {[%clk 0:02:01.6]} 21... Nc4 {[%clk 0:01:37.6]} 22. Bxc4
{[%clk 0:01:58.4]} 22... Qxc4 {[%clk 0:01:38.5]} 23. b3 {[%clk 0:01:54]} 23...
Qc3 {[%clk 0:01:38.9]} 24. Qe1 {[%clk 0:01:42.5]} 24... Qxa1 {[%clk 0:01:34.4]}
25. Qxa1 {[%clk 0:01:42.9]} 25... Bxa1 {[%clk 0:01:35.3]} 26. Rxa1 {[%clk
0:01:43.2]} 26... Rfc8 {[%clk 0:01:35.7]} 27. c4 {[%clk 0:01:33.7]} 27... b5
{[%clk 0:01:35]} 28. cxb5 {[%clk 0:01:34]} 28... axb5 {[%clk 0:01:35.9]} 29. Re1
{[%clk 0:01:34.3]} 29... f5 {[%clk 0:01:32.3]} 30. g4 {[%clk 0:01:33.1]} 30...
Kf7 {[%clk 0:01:32.6]} 31. Bf2 {[%clk 0:01:30.5]} 31... Ra2 {[%clk 0:01:32.2]}
32. Bh4 {[%clk 0:01:29.1]} 32... Rc7 {[%clk 0:01:29.6]} 0-1

[Event "Early-Titled-Tuesday-Blitz-May-14-2024"]
[Site "Chess.com"]
[Date "2024.05.14"]
[Round "9"]
[White "Resourchess"]
[Black "Szachulec75"]
[Result "1-0"]
[WhiteElo "2380"]
[BlackElo "2142"]
[TimeControl "180+1"]
[EndTime "9:44:34 PDT"]
[Termination "Resourchess won by resignation"]

1. d4 {[%clk 0:03:00.9]} 1... Nf6 {[%clk 0:02:47.4]} 2. c4 {[%clk 0:02:59.9]}
2... g6 {[%clk 0:02:45.9]} 3. f3 {[%clk 0:02:59.7]} 3... Bg7 {[%clk 0:02:46.5]}
4. e4 {[%clk 0:02:59.6]} 4... d6 {[%clk 0:02:47.1]} 5. Nc3 {[%clk 0:03:00.1]}
5... O-O {[%clk 0:02:47.6]} 6. Be3 {[%clk 0:03:00.7]} 6... e5 {[%clk 0:02:46.3]}
7. Nge2 {[%clk 0:03:01.6]} 7... Nc6 {[%clk 0:02:44.7]} 8. d5 {[%clk 0:03:02.5]}
8... Ne7 {[%clk 0:02:44]} 9. Qd2 {[%clk 0:03:01.7]} 9... Ne8 {[%clk 0:02:43.9]}
10. O-O-O {[%clk 0:02:59.4]} 10... f5 {[%clk 0:02:36.2]} 11. h4 {[%clk
0:02:50.5]} 11... f4 {[%clk 0:02:30.4]} 12. Bf2 {[%clk 0:02:49.9]} 12... a6
{[%clk 0:02:30.9]} 13. Kb1 {[%clk 0:02:49.9]} 13... b5 {[%clk 0:02:30.4]} 14.
cxb5 {[%clk 0:02:49.6]} 14... axb5 {[%clk 0:02:30.5]} 15. Nxb5 {[%clk
0:02:48.2]} 15... Ba6 {[%clk 0:02:30.5]} 16. Nbc3 {[%clk 0:02:46.1]} 16... Qb8
{[%clk 0:02:27.5]} 17. Nc1 {[%clk 0:02:46.1]} 17... Nf6 {[%clk 0:02:24.7]} 18.
Nb3 {[%clk 0:02:38.5]} 18... Qb4 {[%clk 0:02:15.3]} 19. Nb5 {[%clk 0:02:04.9]}
19... Qxd2 {[%clk 0:01:49.6]} 20. Rxd2 {[%clk 0:02:03.7]} 20... Bxb5 {[%clk
0:01:49.8]} 21. Bxb5 {[%clk 0:02:04.3]} 21... Rfb8 {[%clk 0:01:49.4]} 22. Be2
{[%clk 0:02:00.8]} 22... c5 {[%clk 0:01:35.6]} 23. dxc6 {[%clk 0:01:49.4]} 23...
Nxc6 {[%clk 0:01:34.9]} 24. Rxd6 {[%clk 0:01:48.1]} 24... Nb4 {[%clk 0:01:18.1]}
25. a3 {[%clk 0:01:29.2]} 25... Nc6 {[%clk 0:00:56.6]} 26. Rxc6 {[%clk
0:01:28.2]} 26... Rxb3 {[%clk 0:00:55.6]} 27. Bc4+ {[%clk 0:01:27.9]} 1-0

[Event "Early-Titled-Tuesday-Blitz-May-14-2024"]
[Site "Chess.com"]
[Date "2024.05.14"]
[Round "9"]
[White "Eagle_2019"]
[Black "tandaleo"]
[Result "1-0"]
[WhiteElo "2868"]
[BlackElo "2610"]
[TimeControl "180+1"]
[EndTime "9:44:35 PDT"]
[Termination "Eagle_2019 won by resignation"]

1. d4 {[%clk 0:03:00.9]} 1... d5 {[%clk 0:02:59.1]} 2. Nf3 {[%clk 0:03:00]} 2...
Nf6 {[%clk 0:02:59.4]} 3. c4 {[%clk 0:02:54.1]} 3... e6 {[%clk 0:02:59.2]} 4.
Nc3 {[%clk 0:02:53.4]} 4... Be7 {[%clk 0:02:45.9]} 5. Bg5 {[%clk 0:02:52.1]}
5... h6 {[%clk 0:02:45.2]} 6. Bxf6 {[%clk 0:02:50.7]} 6... Bxf6 {[%clk
0:02:45.9]} 7. e3 {[%clk 0:02:48.1]} 7... O-O {[%clk 0:02:44.7]} 8. Qc2 {[%clk
0:02:46.9]} 8... c6 {[%clk 0:02:38.7]} 9. h4 {[%clk 0:02:45.6]} 9... g6 {[%clk
0:02:38.9]} 10. h5 {[%clk 0:02:44]} 10... g5 {[%clk 0:02:39.1]} 11. Bd3 {[%clk
0:02:44]} 11... Nd7 {[%clk 0:02:35.3]} 12. O-O-O {[%clk 0:02:42.1]} 12... a5
{[%clk 0:02:29.2]} 13. e4 {[%clk 0:02:41.5]} 13... dxc4 {[%clk 0:02:26.8]} 14.
Bxc4 {[%clk 0:02:41.3]} 14... b5 {[%clk 0:02:27.5]} 15. Be2 {[%clk 0:02:40.7]}
15... Qb6 {[%clk 0:02:15.1]} 16. e5 {[%clk 0:02:34.1]} 16... Bg7 {[%clk
0:02:15.4]} 17. Ne4 {[%clk 0:02:32.2]} 17... Bb7 {[%clk 0:01:50]} 18. Nexg5
{[%clk 0:02:28]} 18... Rfc8 {[%clk 0:01:41.5]} 19. Nxf7 {[%clk 0:02:15.5]} 19...
Kxf7 {[%clk 0:01:35.1]} 20. Qg6+ {[%clk 0:02:14.7]} 20... Kf8 {[%clk 0:01:31.5]}
21. Qxe6 {[%clk 0:02:04.6]} 21... Qd8 {[%clk 0:01:28.3]} 22. Nh4 {[%clk
0:02:00.1]} 22... Bh8 {[%clk 0:00:41.9]} 23. Qxh6+ {[%clk 0:01:53.8]} 23... Kg8
{[%clk 0:00:37.1]} 24. Qe6+ {[%clk 0:01:52.3]} 24... Kf8 {[%clk 0:00:36.6]} 25.
Ng6+ {[%clk 0:01:49.2]} 25... Kg7 {[%clk 0:00:35.8]} 26. h6+ {[%clk 0:01:49.7]}
26... Kh7 {[%clk 0:00:36.1]} 27. Qf7+ {[%clk 0:01:49.9]} 1-0

[Event "Early-Titled-Tuesday-Blitz-May-14-2024"]
[Site "Chess.com"]
[Date "2024.05.14"]
[Round "9"]
[White "LeoWin2012"]
[Black "Cheer_Down"]
[Result "1/2-1/2"]
[WhiteElo "2337"]
[BlackElo "2456"]
[TimeControl "180+1"]
[EndTime "9:44:49 PDT"]
[Termination "Game drawn by repetition"]

1. e4 {[%clk 0:03:00.9]} 1... e6 {[%clk 0:02:59.7]} 2. d4 {[%clk 0:03:00.7]}
2... d5 {[%clk 0:03:00.1]} 3. Bd3 {[%clk 0:02:59.9]} 3... c5 {[%clk 0:02:58.2]}
4. exd5 {[%clk 0:02:56.6]} 4... exd5 {[%clk 0:02:57.6]} 5. Nf3 {[%clk
0:02:56.7]} 5... Nf6 {[%clk 0:02:57]} 6. O-O {[%clk 0:02:55.8]} 6... c4 {[%clk
0:02:57.2]} 7. Re1+ {[%clk 0:02:55.7]} 7... Be7 {[%clk 0:02:57.4]} 8. Bf1 {[%clk
0:02:56.2]} 8... O-O {[%clk 0:02:58]} 9. c3 {[%clk 0:02:56.4]} 9... Nc6 {[%clk
0:02:54]} 10. Nbd2 {[%clk 0:02:56.3]} 10... Bg4 {[%clk 0:02:49.4]} 11. h3 {[%clk
0:02:55.9]} 11... Bh5 {[%clk 0:02:49.2]} 12. Be2 {[%clk 0:02:55.4]} 12... Bd6
{[%clk 0:02:47]} 13. Ne5 {[%clk 0:02:44.9]} 13... Bxe2 {[%clk 0:02:41.4]} 14.
Qxe2 {[%clk 0:02:45.8]} 14... Re8 {[%clk 0:02:41.1]} 15. Ndf3 {[%clk 0:02:40.6]}
15... Ne4 {[%clk 0:02:39.9]} 16. Nxc6 {[%clk 0:02:40]} 16... bxc6 {[%clk
0:02:39.3]} 17. Be3 {[%clk 0:02:38.1]} 17... Qf6 {[%clk 0:02:35.6]} 18. Nd2
{[%clk 0:02:36.4]} 18... h5 {[%clk 0:02:25.6]} 19. Qf3 {[%clk 0:02:30]} 19...
Qxf3 {[%clk 0:02:18.2]} 20. Nxf3 {[%clk 0:02:30.9]} 20... f6 {[%clk 0:02:16.4]}
21. Re2 {[%clk 0:02:30.5]} 21... Kf7 {[%clk 0:02:15.3]} 22. Rae1 {[%clk
0:02:29.6]} 22... Rab8 {[%clk 0:02:13.5]} 23. Bc1 {[%clk 0:02:29.2]} 23... g5
{[%clk 0:02:11.5]} 24. Nd2 {[%clk 0:02:28.8]} 24... Nxd2 {[%clk 0:02:11.1]} 25.
Rxe8 {[%clk 0:02:25.5]} 25... Nf3+ {[%clk 0:02:05.7]} 26. gxf3 {[%clk
0:02:25.2]} 26... Rxe8 {[%clk 0:02:05.8]} 27. Rxe8 {[%clk 0:02:25.9]} 27... Kxe8
{[%clk 0:02:06.1]} 28. f4 {[%clk 0:01:47.5]} 28... g4 {[%clk 0:01:55.5]} 29.
hxg4 {[%clk 0:01:45.8]} 29... hxg4 {[%clk 0:01:55.8]} 30. f5 {[%clk 0:01:35.3]}
30... Kf7 {[%clk 0:01:46.1]} 31. Kg2 {[%clk 0:01:35.7]} 31... Kg7 {[%clk
0:01:45.5]} 32. f3 {[%clk 0:01:35.4]} 32... g3 {[%clk 0:01:26.1]} 33. f4 {[%clk
0:01:30.2]} 33... Kh6 {[%clk 0:01:25.8]} 34. Kxg3 {[%clk 0:01:30.3]} 34... Kh5
{[%clk 0:01:26.4]} 35. Be3 {[%clk 0:01:25.6]} 35... a6 {[%clk 0:01:23.3]} 36. a4
{[%clk 0:01:23.4]} 36... Bc7 {[%clk 0:01:22]} 37. Bf2 {[%clk 0:01:18.8]} 37...
Bd6 {[%clk 0:01:21.1]} 38. Be3 {[%clk 0:01:18.7]} 38... Bf8 {[%clk 0:01:20.7]}
39. Bf2 {[%clk 0:01:17.1]} 39... Be7 {[%clk 0:01:20.6]} 40. Be3 {[%clk
0:01:17.4]} 40... Bf8 {[%clk 0:01:19.8]} 41. Bf2 {[%clk 0:01:17.8]} 41... Bd6
{[%clk 0:01:19.7]} 42. Be3 {[%clk 0:01:18.5]} 1/2-1/2

[Event "Early-Titled-Tuesday-Blitz-May-14-2024"]
[Site "Chess.com"]
[Date "2024.05.14"]
[Round "9"]
[White "NiranjanNavalgund"]
[Black "abelmat"]
[Result "1-0"]
[WhiteElo "2427"]
[BlackElo "2014"]
[TimeControl "180+1"]
[EndTime "9:44:54 PDT"]
[Termination "NiranjanNavalgund won on time"]

1. e4 {[%clk 0:02:37.2]} 1... e6 {[%clk 0:02:59.7]} 2. e5 {[%clk 0:02:37]} 2...
d5 {[%clk 0:03:00.6]} 3. exd6 {[%clk 0:02:37]} 3... cxd6 {[%clk 0:02:57.2]} 4.
d4 {[%clk 0:02:37.4]} 4... d5 {[%clk 0:02:56.5]} 5. Nf3 {[%clk 0:02:38.3]} 5...
Nf6 {[%clk 0:02:56.4]} 6. Bd3 {[%clk 0:02:39.2]} 6... Be7 {[%clk 0:02:55.4]} 7.
c3 {[%clk 0:02:40.1]} 7... O-O {[%clk 0:02:55]} 8. Ne5 {[%clk 0:02:41]} 8... Nc6
{[%clk 0:02:53]} 9. Nd2 {[%clk 0:02:41.9]} 9... Qc7 {[%clk 0:02:48.3]} 10. f4
{[%clk 0:02:41.7]} 10... b6 {[%clk 0:02:39.3]} 11. Qe2 {[%clk 0:02:42.1]} 11...
Bb7 {[%clk 0:02:39.5]} 12. O-O {[%clk 0:02:42.1]} 12... Bd6 {[%clk 0:02:27.9]}
13. Rf3 {[%clk 0:02:42.5]} 13... Ne7 {[%clk 0:02:26.5]} 14. Rh3 {[%clk
0:02:42.7]} 14... a6 {[%clk 0:02:02.9]} 15. Bxh7+ {[%clk 0:02:42.3]} 15... Kh8
{[%clk 0:01:40.8]} 16. Bc2+ {[%clk 0:02:37.4]} 16... Kg8 {[%clk 0:01:39.9]} 17.
g4 {[%clk 0:02:35.5]} 17... Bxe5 {[%clk 0:00:55.4]} 18. fxe5 {[%clk 0:02:32.5]}
18... Ne4 {[%clk 0:00:49.5]} 19. Nxe4 {[%clk 0:02:31.8]} 19... dxe4 {[%clk
0:00:48.9]} 20. Bxe4 {[%clk 0:02:32.7]} 20... Bxe4 {[%clk 0:00:44.6]} 21. Qxe4
{[%clk 0:02:33.6]} 21... Ng6 {[%clk 0:00:44.3]} 22. g5 {[%clk 0:02:33.5]} 22...
b5 {[%clk 0:00:26]} 23. Qg4 {[%clk 0:02:31.1]} 23... Rfd8 {[%clk 0:00:15.3]} 24.
Be3 {[%clk 0:02:31.4]} 24... Kf8 {[%clk 0:00:11.3]} 25. Rf1 {[%clk 0:02:30.9]}
25... Ke7 {[%clk 0:00:09.4]} 26. Rhf3 {[%clk 0:02:30.7]} 26... Rf8 {[%clk
0:00:09]} 27. Qh5 {[%clk 0:02:29.1]} 27... Qc4 {[%clk 0:00:07.4]} 28. Qh7 {[%clk
0:02:29.5]} 28... Qd3 {[%clk 0:00:06.5]} 29. Qxg7 {[%clk 0:02:29.5]} 29... Rae8
{[%clk 0:00:04.7]} 30. Rxf7+ {[%clk 0:02:28.9]} 30... Rxf7 {[%clk 0:00:03.5]}
31. Rxf7+ {[%clk 0:02:29.8]} 31... Kd8 {[%clk 0:00:03.5]} 32. Rd7+ {[%clk
0:02:30]} 32... Kc8 {[%clk 0:00:03.6]} 33. Rc7+ {[%clk 0:02:30.6]} 33... Kb8
{[%clk 0:00:01.1]} 34. Rb7+ {[%clk 0:02:31.1]} 1-0

[Event "Early-Titled-Tuesday-Blitz-May-14-2024"]
[Site "Chess.com"]
[Date "2024.05.14"]
[Round "9"]
[White "sergeikim"]
[Black "Raskolnikov6"]
[Result "1-0"]
[WhiteElo "2620"]
[BlackElo "2438"]
[TimeControl "180+1"]
[EndTime "9:45:02 PDT"]
[Termination "sergeikim won by resignation"]

1. d4 {[%clk 0:03:00.9]} 1... Nf6 {[%clk 0:02:58.2]} 2. c4 {[%clk 0:03:00.8]}
2... e6 {[%clk 0:02:57.5]} 3. Nc3 {[%clk 0:03:00.8]} 3... d5 {[%clk 0:02:57.7]}
4. Nf3 {[%clk 0:03:00.2]} 4... c6 {[%clk 0:02:56.1]} 5. e3 {[%clk 0:02:59.8]}
5... Nbd7 {[%clk 0:02:56.3]} 6. Bd3 {[%clk 0:02:59.7]} 6... Bd6 {[%clk
0:02:54.8]} 7. O-O {[%clk 0:02:58.8]} 7... O-O {[%clk 0:02:55.4]} 8. e4 {[%clk
0:02:59]} 8... dxc4 {[%clk 0:02:49.8]} 9. Bxc4 {[%clk 0:02:58.3]} 9... e5 {[%clk
0:02:49.2]} 10. Bg5 {[%clk 0:02:58]} 10... Qc7 {[%clk 0:02:45.5]} 11. Rc1 {[%clk
0:02:54.2]} 11... exd4 {[%clk 0:02:43.4]} 12. Qxd4 {[%clk 0:02:53.5]} 12... Bf4
{[%clk 0:02:18.1]} 13. Rcd1 {[%clk 0:02:13.6]} 13... Bxg5 {[%clk 0:02:15.1]} 14.
Nxg5 {[%clk 0:02:13.1]} 14... Ne5 {[%clk 0:02:12]} 15. Bb3 {[%clk 0:02:10.3]}
15... Bg4 {[%clk 0:02:06.4]} 16. f3 {[%clk 0:02:02.4]} 16... Bh5 {[%clk
0:01:40.4]} 17. Qc5 {[%clk 0:01:49.8]} 17... Qb6 {[%clk 0:01:23.7]} 18. Qxb6
{[%clk 0:01:45.2]} 18... axb6 {[%clk 0:01:23.9]} 19. g4 {[%clk 0:01:45.1]} 19...
Bg6 {[%clk 0:01:21.7]} 20. h4 {[%clk 0:01:41.2]} 20... h6 {[%clk 0:01:15.8]} 21.
Nh3 {[%clk 0:01:40.7]} 21... b5 {[%clk 0:01:03.8]} 22. Nf4 {[%clk 0:01:40.1]}
22... Bh7 {[%clk 0:00:41.2]} 23. g5 {[%clk 0:01:38.4]} 23... hxg5 {[%clk
0:00:42.1]} 24. hxg5 {[%clk 0:01:38.7]} 24... Ng6 {[%clk 0:00:42.8]} 25. Nxg6
{[%clk 0:01:37]} 25... Bxg6 {[%clk 0:00:31.3]} 26. gxf6 {[%clk 0:01:37]} 26...
gxf6 {[%clk 0:00:32.2]} 27. Kf2 {[%clk 0:01:34.4]} 27... c5 {[%clk 0:00:30.1]}
28. Nxb5 {[%clk 0:01:31]} 1-0

[Event "Early-Titled-Tuesday-Blitz-May-14-2024"]
[Site "Chess.com"]
[Date "2024.05.14"]
[Round "9"]
[White "campochess"]
[Black "pfalcon1949"]
[Result "1-0"]
[WhiteElo "2108"]
[BlackElo "1912"]
[TimeControl "180+1"]
[EndTime "9:45:10 PDT"]
[Termination "campochess won by resignation"]

1. d4 {[%clk 0:02:57.1]} 1... d5 {[%clk 0:02:50.4]} 2. Bg5 {[%clk 0:02:56.4]}
2... f6 {[%clk 0:02:48.3]} 3. Bd2 {[%clk 0:02:54.6]} 3... c5 {[%clk 0:02:37.5]}
4. e4 {[%clk 0:02:54]} 4... dxe4 {[%clk 0:02:35.9]} 5. dxc5 {[%clk 0:02:53]}
5... e5 {[%clk 0:02:35.4]} 6. Bc4 {[%clk 0:02:50.3]} 6... Ne7 {[%clk 0:02:28.8]}
7. Nc3 {[%clk 0:02:48]} 7... Bf5 {[%clk 0:02:26.1]} 8. Nge2 {[%clk 0:02:40.4]}
8... Nd7 {[%clk 0:02:21.4]} 9. b4 {[%clk 0:02:39]} 9... a6 {[%clk 0:02:20.6]}
10. Ng3 {[%clk 0:02:38.2]} 10... Bg6 {[%clk 0:02:19.8]} 11. Ngxe4 {[%clk
0:02:31.6]} 11... Nc6 {[%clk 0:02:19.1]} 12. a3 {[%clk 0:02:23.9]} 12... Be7
{[%clk 0:02:12.9]} 13. O-O {[%clk 0:02:23.1]} 13... b5 {[%clk 0:02:03.3]} 14.
Bd5 {[%clk 0:02:13.5]} 14... Rc8 {[%clk 0:02:02.3]} 15. Be3 {[%clk 0:02:07.3]}
15... Bf7 {[%clk 0:01:55.8]} 16. Bxf7+ {[%clk 0:02:05.1]} 16... Kxf7 {[%clk
0:01:50.7]} 17. Qd5+ {[%clk 0:02:04.3]} 17... Kf8 {[%clk 0:01:45.3]} 18. Rad1
{[%clk 0:01:59.2]} 18... Rc7 {[%clk 0:01:32.9]} 19. f4 {[%clk 0:01:57.6]} 19...
Ndb8 {[%clk 0:01:09.7]} 20. Qa2 {[%clk 0:01:48.5]} 20... Rd7 {[%clk 0:01:07.9]}
21. fxe5 {[%clk 0:01:45.8]} 21... Nxe5 {[%clk 0:01:05.1]} 22. Qe6 {[%clk
0:01:40.8]} 22... Rxd1 {[%clk 0:01:01.8]} 23. Rxd1 {[%clk 0:01:39.7]} 23... Qc7
{[%clk 0:00:59.6]} 24. Nd5 {[%clk 0:01:35.1]} 24... Qb7 {[%clk 0:00:54]} 25.
Nxe7 {[%clk 0:01:27.3]} 25... Qxe7 {[%clk 0:00:52.9]} 26. Qc8+ {[%clk
0:01:26.9]} 26... Kf7 {[%clk 0:00:52.5]} 27. Qxh8 {[%clk 0:01:22.8]} 27... Nc4
{[%clk 0:00:51.4]} 28. Qxh7 {[%clk 0:01:07.1]} 28... Nxe3 {[%clk 0:00:47.4]} 29.
Nd6+ {[%clk 0:01:07]} 1-0

[Event "Early-Titled-Tuesday-Blitz-May-14-2024"]
[Site "Chess.com"]
[Date "2024.05.14"]
[Round "9"]
[White "IlanSchnaider"]
[Black "meoluoi91"]
[Result "1-0"]
[WhiteElo "2737"]
[BlackElo "2575"]
[TimeControl "180+1"]
[EndTime "9:45:17 PDT"]
[Termination "IlanSchnaider won by resignation"]

1. e4 {[%clk 0:03:00.9]} 1... c6 {[%clk 0:02:59.2]} 2. Nf3 {[%clk 0:03:01]} 2...
d5 {[%clk 0:02:59.4]} 3. Nc3 {[%clk 0:03:01.9]} 3... g6 {[%clk 0:02:54.1]} 4. d4
{[%clk 0:03:01]} 4... Bg7 {[%clk 0:02:54.3]} 5. h3 {[%clk 0:03:01.8]} 5... dxe4
{[%clk 0:02:51.8]} 6. Nxe4 {[%clk 0:03:02]} 6... Nf6 {[%clk 0:02:52.1]} 7. Qe2
{[%clk 0:03:02.7]} 7... O-O {[%clk 0:02:51.7]} 8. c3 {[%clk 0:03:02.2]} 8...
Nxe4 {[%clk 0:02:43.2]} 9. Qxe4 {[%clk 0:03:03.1]} 9... Bf5 {[%clk 0:02:43.6]}
10. Qh4 {[%clk 0:03:00.8]} 10... Nd7 {[%clk 0:02:29.4]} 11. Be2 {[%clk
0:02:53.2]} 11... e5 {[%clk 0:02:27.5]} 12. Bg5 {[%clk 0:02:32.1]} 12... Qb6
{[%clk 0:02:15.5]} 13. O-O {[%clk 0:02:03.2]} 13... Qxb2 {[%clk 0:02:14.9]} 14.
Bc4 {[%clk 0:02:03.5]} 14... Qxc3 {[%clk 0:01:44.8]} 15. Rac1 {[%clk 0:02:01]}
15... Qb2 {[%clk 0:01:44.4]} 16. Be7 {[%clk 0:01:58.8]} 16... exd4 {[%clk
0:01:05.6]} 17. Bxf8 {[%clk 0:01:40.4]} 17... Rxf8 {[%clk 0:00:40.4]} 18. Ng5
{[%clk 0:01:40.5]} 18... h6 {[%clk 0:00:30.4]} 19. Nxf7 {[%clk 0:01:40.8]} 19...
Rxf7 {[%clk 0:00:30.6]} 20. Qe7 {[%clk 0:01:41.5]} 20... Ne5 {[%clk 0:00:28.5]}
21. Qe8+ {[%clk 0:01:41.9]} 21... Bf8 {[%clk 0:00:28.4]} 22. Qxe5 {[%clk
0:01:41.9]} 22... Qb4 {[%clk 0:00:17.2]} 23. Rfe1 {[%clk 0:01:27.6]} 23... Bg7
{[%clk 0:00:14.3]} 24. Qe8+ {[%clk 0:01:27.1]} 24... Bf8 {[%clk 0:00:14.6]} 25.
Qxf7+ {[%clk 0:01:27]} 1-0

[Event "Early-Titled-Tuesday-Blitz-May-14-2024"]
[Site "Chess.com"]
[Date "2024.05.14"]
[Round "9"]
[White "Gumugama"]
[Black "KorolDimitriy75"]
[Result "1-0"]
[WhiteElo "2302"]
[BlackElo "2399"]
[TimeControl "180+1"]
[EndTime "9:45:17 PDT"]
[Termination "Gumugama won on time"]

1. e4 {[%clk 0:03:00.9]} 1... c5 {[%clk 0:03:00.2]} 2. Nf3 {[%clk 0:03:00.1]}
2... d6 {[%clk 0:03:00.6]} 3. d4 {[%clk 0:02:59.8]} 3... cxd4 {[%clk 0:03:01.5]}
4. Nxd4 {[%clk 0:03:00]} 4... Nf6 {[%clk 0:03:02.1]} 5. Nc3 {[%clk 0:02:59.5]}
5... g6 {[%clk 0:03:03]} 6. Be3 {[%clk 0:02:58.3]} 6... Bg7 {[%clk 0:03:03.6]}
7. f3 {[%clk 0:02:58.3]} 7... O-O {[%clk 0:03:04.2]} 8. Qd2 {[%clk 0:02:58.5]}
8... Nc6 {[%clk 0:03:05.1]} 9. Nb3 {[%clk 0:02:58.8]} 9... a5 {[%clk 0:02:58.6]}
10. a4 {[%clk 0:02:56.2]} 10... Be6 {[%clk 0:02:57.8]} 11. O-O-O {[%clk
0:02:45.9]} 11... Rc8 {[%clk 0:02:50.8]} 12. Kb1 {[%clk 0:02:44.7]} 12... Nb4
{[%clk 0:02:42]} 13. Nd4 {[%clk 0:02:27.2]} 13... Bc4 {[%clk 0:02:14.4]} 14.
Ndb5 {[%clk 0:02:19.1]} 14... Nd7 {[%clk 0:01:43.2]} 15. Na7 {[%clk 0:01:52]}
15... Bxc3 {[%clk 0:01:30.3]} 16. bxc3 {[%clk 0:01:40]} 16... Na6 {[%clk
0:00:36.9]} 17. Nxc8 {[%clk 0:01:27.5]} 17... Qxc8 {[%clk 0:00:37.8]} 18. Bh6
{[%clk 0:01:26.9]} 18... Re8 {[%clk 0:00:15]} 19. Qd4 {[%clk 0:01:24.2]} 19...
Ne5 {[%clk 0:00:09.6]} 20. f4 {[%clk 0:01:20.5]} 1-0